fUSD/lending_fUSD_20260115
["ID","MTS","AMOUNT","RATE_DAILY","PERIOD"]
[401987767,1768439444840,-8529.1125318,0.00033992,2]
[401987768,1768439444849,-2000.0,0.00034,2]
[401987769,1768439444858,-1048.34313102,0.00034028,2]
[401987772,1768439469086,195.0,0.00021505,120]
[401987774,1768439547665,-1507.29,0.00015866,2]
[401987775,1768439547690,-170.431,0.00015866,2]
[401987776,1768439547715,-300.0,0.000159,5]
[401987777,1768439547741,-684.44767463,0.0001609,2]
[401987778,1768439547772,-13437.83132537,0.0001619,2]
[401987779,1768439589393,500.0,0.00015409,2]
[401987780,1768439857292,5000.0,0.0003013,120]
[401987781,1768439873657,3011.1,0.000155,2]
[401987782,1768439949981,1000.0,0.0003,120]
[401987783,1768439984690,1510.0,0.0003,120]
[401987784,1768440032125,171.97,0.00026056,120]
[401987785,1768440032330,171.97,0.00029313,120]
[401987786,1768440090818,1000.0,0.0003,120]
[401987787,1768440106812,1000.0,0.0003,120]
[401987788,1768440122948,1000.0,0.0003,120]
[401987789,1768440136532,1000.0,0.0003,120]
[401987790,1768440152630,1000.0,0.0003,120]
[401987791,1768440208960,188.46396796,0.00029579,120]
[401987792,1768440349214,-344.63214549,0.00015866,2]
[401987799,1768440426565,1000.0,0.000158,5]
[401987801,1768440428650,2100.0,0.000159,5]
[401987802,1768440441269,-765.2777664,0.00015866,2]
[401987822,1768440632117,-95.92208811,0.00015866,2]
[401987824,1768440632127,-170.431,0.00015866,2]
[401987826,1768440632138,-62.54657843,0.00015882,2]
[401987844,1768440632286,-190.72965599,0.00015882,2]
[401987846,1768440632296,-300.0,0.00015898,2]
[401987848,1768440632307,-1200.0,0.00015898,2]
[401987849,1768440632317,-968.51619287,0.00015899,2]
[401987850,1768440632330,-612.89013257,0.00015899,2]
[401987851,1768440632343,-15229.87457967,0.00015899,2]
[401987852,1768440632353,-500.0,0.00015935,2]
[401987853,1768440632363,-300.0,0.00015988,2]
[401987854,1768440632372,-500.0,0.00015989,2]
[401987855,1768440632382,-500.0,0.00015989,2]
[401987856,1768440632392,-500.0,0.00015989,2]
[401987857,1768440632403,-500.0,0.00015989,2]
[401987858,1768440632413,-500.0,0.00015989,2]
[401987859,1768440632424,-500.0,0.00015989,2]
[401987860,1768440632434,-608.90728823,0.00015989,2]
[401987861,1768440632443,-500.0,0.00015989,2]
[401987862,1768440632453,-500.0,0.00015989,2]
[401987863,1768440632463,-500.0,0.00015989,2]
[401987864,1768440632484,-500.0,0.00015989,2]
[401987865,1768440632495,-364.78345271,0.0001599,2]
[401987866,1768440632506,-5519.07573865,0.0001599,2]
[401987867,1768440632556,-452.91224315,0.0001599,2]
[401987868,1768440632569,-271.54991355,0.0001599,2]
[401987869,1768440632585,-1251.37727158,0.0001599,2]
[401987870,1768440632599,-3623.32297995,0.0001599,2]
[401987871,1768440632611,-1998.50742485,0.0001599,2]
[401987872,1768440632624,-4158.62726896,0.0001599,2]
[401987873,1768440632640,-748.00966555,0.0001599,2]
[401987874,1768440632652,-265.84703492,0.0001599,2]
[401987875,1768440632664,-14104.75891564,0.0001599,2]
[401987879,1768440633111,-30900.0,0.0001599,2]
[401987946,1768440636769,1278.9,0.000155,2]
[401987951,1768440638813,-1290.73694089,0.0001599,2]
[401987952,1768440638826,-4096.7933772,0.0001599,2]
[401987953,1768440638837,-3597.96133724,0.0001599,2]
[401987954,1768440638849,-2248.0599344,0.0001599,2]
[401987955,1768440638862,-402.20471372,0.0001599,2]
[401987956,1768440638873,-1339.93021098,0.0001599,2]
[401987957,1768440638885,-17779.38019671,0.0001599,2]
[401987958,1768440638896,-2833.53678,0.0001599,2]
[401987959,1768440638931,-25946.80758099,0.0001599,2]
[401987961,1768440640076,-877170.60047107,0.0001599,2]
[401987962,1768440640086,-120985.91587701,0.00016,2]
[401987963,1768440640097,-55738.93361294,0.00016,4]
[401987964,1768440640327,-57863.10319135,0.00016,4]
[401987965,1768440640475,-85.03086311,0.00016,4]
[401987973,1768440643395,-367.5575808,0.0001589,2]
[401987974,1768440643496,-38.29329076,0.0001589,2]
[401987976,1768440643827,-2207.96057256,0.0001589,2]
[401987977,1768440643839,-1876.43942744,0.0001589,2]
[401987991,1768440646075,-124846.13058836,0.0001589,2]
[401987993,1768440646090,-133047.523553,0.0001589,2]
[401987994,1768440646103,-16005.99999816,0.0001589,2]
[401987995,1768440646115,-3273.76596692,0.0001589,2]
[401987996,1768440646146,-270.95407005,0.0001589,2]
[401988000,1768440669910,284.26444778,0.000301,120]
[401988001,1768440691600,530.0,0.00030137,120]
[401988002,1768440693027,975.786,0.00015572,2]
[401988003,1768440693069,171.623,0.00015572,2]
[401988004,1768440787602,150.13,7.744e-05,2]
[401988005,1768440787811,150.13,8.297e-05,2]
[401988006,1768440788024,150.13,8.85e-05,2]
[401988007,1768440789235,150.13,9.403e-05,2]
[401988008,1768440789358,150.13,9.956e-05,2]
[401988009,1768440789486,150.13,0.00010509,2]
[401988010,1768440789621,150.13,0.00011063,2]
[401988011,1768440789708,150.13,0.00011616,2]
[401988012,1768440789759,150.13,0.00012169,2]
[401988013,1768440790212,150.13,0.00012722,2]
[401988014,1768440790304,150.13,0.00013275,2]
[401988015,1768440790353,150.13,0.00013828,2]
[401988016,1768440790484,150.13,0.00014381,2]
[401988017,1768440790679,150.13,0.00014934,2]
[401988018,1768440790883,150.13,0.00015488,2]
[401988019,1768440821941,501.62262425,0.00030136,120]
[401988020,1768440922431,500.0,0.00018,30]
[401988021,1768440932249,500.0,0.00018,30]
[401988022,1768440981349,500.0,0.00018,30]
[401988023,1768441090643,434.0,0.000202,30]
[401988024,1768441120135,500.0,0.000202,30]
[401988026,1768441285052,195.84,0.00015347,2]
[401988027,1768441293144,171.62312669,0.00015488,2]
[401988028,1768441293179,780.629,0.00015488,2]
[401988029,1768441294532,256.0,0.00030137,120]
[401988030,1768441502952,2209.31318183,0.00012464,2]
[401988031,1768441503320,4451.64681817,0.00012464,2]
[401988032,1768441622148,900.0,0.000158,5]
[401988033,1768441624442,1800.0,0.000159,5]
[401988034,1768441642145,-1779.91711524,0.0001577,2]
[401988036,1768441701579,245.35773675,0.00030137,120]
[401988037,1768441725537,479.97,0.00019178,30]
[401988038,1768441730178,495.0,0.0003013,120]
[401988039,1768441730957,242.0,0.0003013,120]
[401988049,1768441790097,1600.0,0.0003013,120]
[401988050,1768441790592,660.0,0.0003013,120]
[401988055,1768441832410,-150.0,0.00014981,2]
[401988056,1768441832419,-3240.0,0.00015202,2]
[401988057,1768441832428,-195.0,0.00015441,2]
[401988058,1768441832437,-1065.59091527,0.00015588,2]
[401988059,1768441832450,-134.40908473,0.00015588,2]
[401988060,1768441832459,-12845.0178292,0.00015589,2]
[401988061,1768441832473,-345.65168035,0.00015589,2]
[401988062,1768441832550,-1965.20838978,0.00015589,2]
[401988063,1768441832559,-195.0,0.00015622,2]
[401988064,1768441832570,-151.0,0.00015677,2]
[401988065,1768441832579,-153.99546139,0.00015677,2]
[401988066,1768441832589,-118.22969266,0.00015679,2]
[401988067,1768441832601,-35.77030734,0.00015679,2]
[401988068,1768441832609,-504.52955821,0.00015679,2]
[401988069,1768441832619,-500.0,0.00015679,2]
[401988070,1768441832630,-579.4784845,0.00015679,2]
[401988071,1768441832639,-500.0,0.00015679,2]
[401988072,1768441832648,-500.0,0.00015679,2]
[401988073,1768441832657,-500.0,0.00015679,2]
[401988074,1768441832667,-500.0,0.00015679,2]
[401988075,1768441832676,-500.0,0.00015679,2]
[401988076,1768441832685,-500.0,0.00015679,2]
[401988077,1768441832695,-500.0,0.00015679,2]
[401988078,1768441832704,-234.68840907,0.00015679,2]
[401988079,1768441832738,-265.31159093,0.00015679,2]
[401988080,1768441832747,-500.0,0.00015679,2]
[401988081,1768441832756,-500.0,0.00015679,2]
[401988082,1768441832765,-41562.61418227,0.0001568,2]
[401988088,1768441832808,-398.2429221,0.0001568,2]
[401988090,1768441832819,-18468.72332577,0.0001568,2]
[401988093,1768441832840,-474.78399393,0.0001568,2]
[401988145,1768441838380,-4588.94671519,0.0001568,2]
[401988146,1768441838391,-6151.00603752,0.0001568,2]
[401988166,1768441838765,-20400.0,0.0001568,2]
[401988291,1768441840173,-252.636388,0.00015589,2]
[401988295,1768441840185,-445.18375865,0.00015589,2]
[401988297,1768441840195,-784.62,0.0001567,3]
[401988299,1768441840205,-2077.41014392,0.0001568,2]
[401988301,1768441840217,-292.0,0.0001568,2]
[401988303,1768441840228,-1760.88668995,0.0001568,2]
[401988308,1768441840274,-903825.38598935,0.0001568,2]
[401988310,1768441840283,-3548.3201,0.00015689,2]
[401988312,1768441840292,-77321.29934662,0.0001577,2]
[401988314,1768441840302,-3564.7321,0.0001578,2]
[401988315,1768441840311,-2500.0,0.00015789,2]
[401988317,1768441840321,-13099.66516579,0.0001579,2]
[401988319,1768441840330,-790.18079894,0.00015865,2]
[401988321,1768441840339,-3623.72894161,0.00015877,2]
[401988323,1768441840348,-500.0,0.00015889,2]
[401988325,1768441840357,-500.0,0.00015889,2]
[401988327,1768441840367,-292.42921136,0.00015889,2]
[401988329,1768441840376,-500.0,0.00015889,2]
[401988331,1768441840387,-508.8446746,0.00015889,2]
[401988333,1768441840396,-500.0,0.00015889,2]
[401988335,1768441840407,-500.0,0.00015889,2]
[401988337,1768441840416,-500.0,0.00015889,2]
[401988338,1768441840426,-1000.0,0.0001589,2]
[401988339,1768441840436,-1000.0,0.00015899,2]
[401988340,1768441840445,-769.79395502,0.00015962,2]
[401988341,1768441840454,-15155.87789933,0.00015971,2]
[401988342,1768441840463,-596.8975932,0.00015972,2]
[401988343,1768441840473,-23298.2941852,0.00015972,2]
[401988344,1768441840529,-2341.20062471,0.00015972,2]
[401988345,1768441840540,-3017.26,0.00015972,2]
[401988346,1768441840552,-650.56065509,0.00015972,2]
[401988347,1768441840561,-1335.4115458,0.00015972,2]
[401988348,1768441840573,-600.719909,0.00015972,2]
[401988349,1768441840585,-1330.08239876,0.00015972,2]
[401988350,1768441840596,-3621.70117634,0.00015972,2]
[401988351,1768441840605,-500.0,0.00015989,2]
[401988352,1768441840614,-500.0,0.00015989,2]
[401988353,1768441840623,-48.11914534,0.00015989,2]
[401988354,1768441840636,-451.88085466,0.00015989,2]
[401988355,1768441840645,-13.33564515,0.00015989,2]
[401988684,1768441843909,-486.66435485,0.00015989,2]
[401988686,1768441843919,-74.9589088,0.00015989,2]
[401988688,1768441843932,-425.0410912,0.00015989,2]
[401988690,1768441843942,-339.1489088,0.00015989,2]
[401988700,1768441844093,-160.8510912,0.00015989,2]
[401988701,1768441844103,-520.03737569,0.00015989,2]
[401988702,1768441844112,-500.0,0.00015989,2]
[401988703,1768441844121,-500.0,0.00015989,2]
[401988704,1768441844132,-500.0,0.00015989,2]
[401988705,1768441844141,-500.0,0.00015989,2]
[401988707,1768441844150,-500.0,0.00015989,2]
[401988708,1768441844160,-495.8968588,0.00015989,2]
[401988709,1768441844170,-243.18896847,0.0001599,2]
[401988711,1768441844180,-3365.08,0.00015992,2]
[401988714,1768441844190,-578.89381889,0.00015999,2]
[401988718,1768441844203,-93038.20308529,0.00016,4]
[401988724,1768441844224,-5235.05729925,0.00016,4]
[401988728,1768441844236,-776.90309751,0.00016,4]
[401988731,1768441844248,-765.44534152,0.00016,4]
[401988734,1768441844260,-2333.0,0.00016,4]
[401988780,1768441844668,-1426.9169098,0.00016,4]
[401988782,1768441844680,-1632.89,0.00016,4]
[401988792,1768441844773,-2353.88008,0.00016,4]
[401988795,1768441844784,-710.92467494,0.00016,4]
[401988800,1768441844806,-1624.0943814,0.00016,4]
[401988804,1768441844817,-1000.0,0.00016,4]
[401988956,1768441846316,-264.34999325,0.00016,4]
[401988960,1768441846348,-4869.0000014,0.00016,4]
[401988962,1768441846360,-83064.71586453,0.00016,4]
[401988967,1768441846391,-629.2,0.00016,4]
[401989454,1768441856263,252.09389889,0.0003013,120]
[401989455,1768442000573,189.96,0.00030137,120]
[401989456,1768442107051,157.7620404,0.00030136,120]
[401989457,1768442210237,172.23,0.00011861,2]
[401989461,1768442418664,196.5,0.00030137,120]
[401989462,1768442432222,1000.0,0.00030137,120]
[401989463,1768442433847,-166.66,0.00014287,2]
[401989464,1768442433871,-220.0978767,0.00014287,2]
[401989465,1768442433940,-47.9021233,0.00014287,2]
[401989471,1768442810537,-1200.01159971,0.00014219,2]
[401989472,1768442812067,-500.0,0.00014219,2]
[401989473,1768442814991,-500.0,0.00014219,2]
[401989474,1768442816155,1000.0,0.0003013,120]
[401989475,1768442816480,-500.0,0.00014219,2]
[401989476,1768442819334,-500.0,0.00014219,2]
[401989477,1768442821729,-190.354199,0.00014219,2]
[401989478,1768442833412,902.0,0.0003013,120]
[401989479,1768442846754,700.0,0.000158,5]
[401989480,1768442849070,1500.0,0.000159,5]
[401989481,1768442951095,-758.554265,0.00014147,2]
[401989482,1768442951119,-1544.87821989,0.00014219,2]
[401989483,1768442951143,-262.499064,0.00014337,2]
[401989484,1768442951167,-260.61406149,0.00014437,2]
[401989485,1768442951191,-300.0,0.00014512,2]
[401989486,1768442951214,-166.66,0.00014587,2]
[401989487,1768442951238,-150.0,0.00014611,2]
[401989488,1768442973108,-350.79,0.00014736,2]
[401989489,1768442973132,-373.86707065,0.00014742,2]
[401989490,1768442973155,-200.0,0.00014787,2]
[401989491,1768442973176,-300.0,0.00014818,2]
[401989492,1768442973196,-150.0,0.00014818,2]
[401989493,1768442973216,-2899.93166078,0.00014819,2]
[401989509,1768443032713,-254.07,0.00014709,2]
[401989510,1768443032723,-254.07,0.00014709,2]
[401989511,1768443032732,-254.07,0.00014709,2]
[401989512,1768443032741,-254.07,0.00014709,2]
[401989513,1768443032750,-254.07,0.00014709,2]
[401989514,1768443032759,-8884.28,0.00014709,2]
[401989515,1768443032768,-8884.28,0.00014709,2]
[401989516,1768443032777,-1200.0,0.00014718,2]
[401989517,1768443032786,-19860.5422235,0.00014719,2]
[401989518,1768443032797,-116292.56377017,0.00014719,2]
[401989519,1768443032811,-1831.0046154,0.00014719,2]
[401989520,1768443032849,-925.0,0.00014719,2]
[401989521,1768443032861,-861090.88939093,0.00014719,2]
[401989522,1768443032870,-155.77312145,0.00014719,2]
[401989523,1768443032879,-10124.2553875,0.00014819,2]
[401989524,1768443032888,-6536.05817116,0.00014819,2]
[401989525,1768443032899,-16440.15158821,0.00014819,2]
[401989526,1768443032908,-20697.33674803,0.00014819,2]
[401989527,1768443032919,-13673.69893514,0.00014819,2]
[401989528,1768443032929,-166.66,0.00014888,2]
[401989529,1768443032938,-166.66,0.00015189,2]
[401989530,1768443032947,-69617.0472,0.0001547,2]
[401989531,1768443032956,-9999.99,0.0001549,2]
[401989532,1768443032966,-166.66,0.0001549,2]
[401989533,1768443032975,-250.0,0.00015562,2]
[401989534,1768443032985,-1535.546,0.0001557,2]
[401989535,1768443032995,-161.778,0.0001557,2]
[401989536,1768443033004,-684.65098817,0.00015579,2]
[401989537,1768443033013,-11789.69864922,0.0001559,2]
[401989538,1768443033023,-629.78059855,0.0001559,2]
[401989539,1768443033032,-354.60410027,0.00015641,2]
[401989540,1768443033041,-195.0,0.00015641,2]
[401989541,1768443033052,-289.4657473,0.00015661,2]
[401989542,1768443033061,-202.37731163,0.00015661,2]
[401989543,1768443033070,-336.08743779,0.00015661,2]
[401989544,1768443033084,-163.91256221,0.00015661,2]
[401989545,1768443033093,-500.0,0.00015661,2]
[401989546,1768443033102,-500.0,0.00015661,2]
[401989547,1768443033112,-500.0,0.00015661,2]
[401989548,1768443033121,-500.0,0.00015661,2]
[401989549,1768443033131,-500.0,0.00015661,2]
[401989550,1768443033139,-500.0,0.00015661,2]
[401989551,1768443033149,-500.0,0.00015661,2]
[401989552,1768443033158,-500.0,0.00015661,2]
[401989553,1768443033167,-500.0,0.00015661,2]
[401989554,1768443033177,-500.0,0.00015661,2]
[401989555,1768443033186,-500.0,0.00015661,2]
[401989556,1768443033195,-201.91646299,0.00015661,2]
[401989557,1768443033205,-500.0,0.00015661,2]
[401989558,1768443033214,-500.0,0.00015661,2]
[401989559,1768443033223,-500.0,0.00015661,2]
[401989560,1768443033232,-500.0,0.00015661,2]
[401989561,1768443033242,-500.0,0.00015661,2]
[401989562,1768443033252,-500.0,0.00015661,2]
[401989563,1768443033261,-500.0,0.00015661,2]
[401989564,1768443033270,-123.70968604,0.00015661,2]
[401989565,1768443033281,-273.84430536,0.00015661,2]
[401989566,1768443033327,-102.4460086,0.00015661,2]
[401989567,1768443033336,-151.0,0.00015661,2]
[401989568,1768443033345,-500.0,0.00015661,2]
[401989569,1768443033355,-500.0,0.00015661,2]
[401989570,1768443033364,-151.0,0.00015661,2]
[401989571,1768443033375,-500.0,0.00015661,2]
[401989572,1768443033384,-151.0,0.00015661,2]
[401989573,1768443033394,-151.0,0.00015661,2]
[401989574,1768443033403,-151.0,0.00015661,2]
[401989575,1768443033414,-151.0,0.00015661,2]
[401989576,1768443033424,-151.0,0.00015661,2]
[401989577,1768443033433,-151.0,0.00015661,2]
[401989578,1768443033443,-151.0,0.00015661,2]
[401989579,1768443033453,-151.0,0.00015661,2]
[401989580,1768443033462,-151.0,0.00015661,2]
[401989581,1768443033471,-500.0,0.00015669,2]
[401989582,1768443033480,-500.0,0.00015669,2]
[401989583,1768443033492,-474.43522182,0.00015669,2]
[401989584,1768443033501,-500.0,0.00015669,2]
[401989585,1768443033511,-500.0,0.00015669,2]
[401989586,1768443033520,-200.62344859,0.00015669,2]
[401989587,1768443033532,-299.37655141,0.00015669,2]
[401989588,1768443033541,-267.13246791,0.00015669,2]
[401989589,1768443033553,-232.86753209,0.00015669,2]
[401989590,1768443033562,-36.98114489,0.00015669,2]
[401989593,1768443038378,-1000.0,0.0001569,2]
[401989594,1768443038388,-166.66,0.0001579,2]
[401989595,1768443038397,-151.0,0.00015856,2]
[401989597,1768443038407,-154.59,0.00015873,2]
[401989598,1768443038421,-151.0,0.00015873,2]
[401989599,1768443038431,-158.52328957,0.00015881,2]
[401989600,1768443038441,-300.0,0.00015881,2]
[401989601,1768443038451,-151.0,0.00015881,2]
[401989602,1768443038462,-500.0,0.00015889,2]
[401989603,1768443038471,-500.0,0.00015889,2]
[401989604,1768443038481,-500.0,0.00015889,2]
[401989605,1768443038492,-500.0,0.00015889,2]
[401989606,1768443038503,-544.19014424,0.00015889,2]
[401989607,1768443038514,-200.0,0.00015981,2]
[401989608,1768443038523,-500.0,0.00015989,2]
[401989609,1768443038532,-500.0,0.00015989,2]
[401989610,1768443038540,-500.0,0.00015989,2]
[401989611,1768443038549,-478.03656669,0.00015989,2]
[401989612,1768443038560,-21.96343331,0.00015989,2]
[401989613,1768443038569,-162.12597898,0.0001599,2]
[401989614,1768443038578,-399.63937771,0.00015993,2]
[401989615,1768443038600,-493.17330366,0.00015993,2]
[401989616,1768443038615,-433.10481753,0.00015993,2]
[401989617,1768443038626,-301.75977233,0.00015993,2]
[401989618,1768443038637,-860.85068214,0.00015993,2]
[401989619,1768443038674,-24513.06742293,0.00015993,2]
[401989620,1768443038683,-277.4912272,0.00015993,2]
[401989621,1768443038692,-757.5648559,0.00015993,2]
[401989623,1768443038701,-500.0,0.00015998,2]
[401989625,1768443038711,-161.000858,0.00015999,2]
[401989627,1768443038719,-500.0,0.00015999,2]
[401989629,1768443038729,-257.59471221,0.00015999,2]
[401989631,1768443038738,-151.0,0.00015999,2]
[401989633,1768443038747,-175.73087441,0.00016,4]
[401989820,1768443040484,-28861.71197835,0.00016,4]
[401990185,1768443043885,-13405.0,0.00016,4]
[401990190,1768443043918,-3802.50745794,0.00016,4]
[401990195,1768443043961,-48162.87146196,0.00016,4]
[401990410,1768443046208,-8101.92395613,0.00016,4]
[401990412,1768443046222,-37148.62673143,0.00016,4]
[401990414,1768443046236,-95125.33915054,0.00016,4]
[401990415,1768443046259,-9523.14296502,0.00016,4]
[401990416,1768443046300,-21481.08184885,0.00016,4]
[401990417,1768443046310,-46505.2302,0.00016019,2]
[401990418,1768443046320,-500.0,0.00016079,2]
[401990419,1768443046330,-151.0,0.00016139,2]
[401990420,1768443046339,-12712.44,0.00016139,2]
[401990421,1768443046348,-860.91,0.00016159,2]
[401990422,1768443046358,-250.0,0.0001619,2]
[401990423,1768443046368,-778.0,0.0001619,2]
[401990424,1768443046377,-218.25,0.00016197,2]
[401990425,1768443046386,-500.0,0.00016209,2]
[401990426,1768443046395,-500.0,0.00016437,2]
[401990427,1768443046404,-2790.25,0.00016478,2]
[401990428,1768443046413,-500.0,0.00016573,2]
[401990429,1768443046429,-500.0,0.00016573,2]
[401990430,1768443046439,-350.79,0.00016578,2]
[401990431,1768443046448,-166.66,0.00016603,2]
[401990432,1768443046459,-172.81,0.00016712,2]
[401990433,1768443046469,-500.0,0.00016757,2]
[401990434,1768443046479,-860.91,0.00016967,2]
[401990435,1768443046490,-163.45,0.00017,2]
[401990436,1768443046499,-11789.69864916,0.00017071,2]
[401990437,1768443046509,-1001.0268674,0.00017121,2]
[401990438,1768443046518,-1000.74973973,0.00017121,2]
[401990439,1768443046527,-166.66,0.00017151,2]
[401990440,1768443046536,-500.0,0.00017305,2]
[401990441,1768443046546,-1602.28563025,0.000175,2]
[401990442,1768443046555,-2000.0,0.000175,2]
[401990443,1768443046565,-166.66,0.00017699,2]
[401990444,1768443046574,-780.49784953,0.000177,2]
[401990445,1768443046583,-2300.0,0.000177,6]
[401990446,1768443046593,-150.44629834,0.00017773,2]
[401990447,1768443046602,-860.91,0.00017775,2]
[401990448,1768443046611,-3100.0,0.000178,6]
[401990449,1768443046620,-11789.69864916,0.00017811,2]
[401990450,1768443046630,-500.0,0.00017853,2]
[401990451,1768443046639,-19193.74338386,0.000179,2]
[401990452,1768443046648,-349.58536728,0.000179,2]
[401990453,1768443046658,-3900.0,0.000179,6]
[401990454,1768443046668,-207.07990025,0.000179,2]
[401990456,1768443046678,-180.60405323,0.000179,3]
[401990457,1768443046687,-948.30762844,0.000179,2]
[401990458,1768443046696,-2021.84453045,0.000179,2]
[401990459,1768443046706,-312.70345821,0.000179,2]
[401990460,1768443046715,-153.48310407,0.00017973,2]
[401990461,1768443046725,-162.12597898,0.0001799,2]
[401990462,1768443046735,-520.83873125,0.00017997,2]
[401990463,1768443046743,-163.276694,0.00017999,2]
[401990464,1768443046753,-155.593,0.00017999,2]
[401990465,1768443046762,-300.0,0.00017999,2]
[401990466,1768443046771,-670.59480173,0.00017999,2]
[401990467,1768443046780,-500.0,0.00017999,2]
[401990468,1768443046789,-500.0,0.00017999,2]
[401990469,1768443046799,-500.0,0.00017999,2]
[401990470,1768443046808,-500.0,0.00017999,2]
[401990471,1768443046818,-571.55631892,0.00017999,2]
[401990472,1768443046827,-300.0,0.00017999,2]
[401990473,1768443046836,-612.57239802,0.00017999,2]
[401990474,1768443046845,-307.33687418,0.00017999,2]
[401990475,1768443046854,-330574.66335454,0.00018,2]
[401990476,1768443046866,-1099.70298114,0.00018,2]
[401990477,1768443046904,-1567.47736621,0.00018,2]
[401990479,1768443184316,306.0,0.00018,30]
[401990480,1768443314069,362.0,0.00030137,120]
[401990489,1768443399543,2232.21,0.0003013,120]
[401990491,1768443526981,229.02,8.533e-05,2]
[401990492,1768443527200,229.02,8.982e-05,2]
[401990493,1768443528014,229.02,9.431e-05,2]
[401990494,1768443528276,229.02,9.88e-05,2]
[401990495,1768443528615,229.02,0.00010329,2]
[401990496,1768443528815,229.02,0.00010779,2]
[401990497,1768443528917,229.02,0.00011228,2]
[401990498,1768443529001,229.02,0.00011677,2]
[401990499,1768443529070,229.02,0.00012126,2]
[401990500,1768443529217,229.02,0.00012575,2]
[401990501,1768443529430,229.02,0.00013024,2]
[401990502,1768443529636,229.02,0.00013473,2]
[401990503,1768443529952,229.02,0.00013922,2]
[401990505,1768443907273,-229.02,0.00014371,2]
[401990506,1768443907303,-222.80547287,0.00014446,2]
[401990507,1768443907326,-7209.03,0.00014521,2]
[401990508,1768443907380,-1200.0,0.00014819,2]
[401990509,1768443907413,-395.93438525,0.0001482,2]
[401990510,1768443907454,-229.02,0.0001482,2]
[401990511,1768443944149,-229.02,0.00015269,2]
[401990512,1768443944170,-620.0,0.00015468,2]
[401990513,1768443944192,-507.08916018,0.00015669,2]
[401990514,1768443944215,-229.02,0.00015719,2]
[401990515,1768443944237,-1174.95455614,0.00015719,2]
[401990524,1768443980794,4148.81787974,0.000295,120]
[401990525,1768444002413,692.34811688,0.0003,120]
[401990526,1768444024018,5560.23787658,0.00015,2]
[401990527,1768444098347,10549.97809641,0.00015,2]
[401990538,1768444116352,4912.72173498,0.00015,2]
[401990541,1768444229200,600.0,0.00015,2]
[401990553,1768444231381,-192.31452664,0.00015366,2]
[401990554,1768444231391,-500.0,0.00015669,2]
[401990555,1768444231400,-500.0,0.00015669,2]
[401990556,1768444231409,-380.81545101,0.00015669,2]
[401990557,1768444231422,-119.18454899,0.00015669,2]
[401990558,1768444231431,-500.0,0.00015669,2]
[401990559,1768444231441,-300.0,0.00015718,2]
[401990560,1768444231452,-15367.07544386,0.00015719,2]
[401990561,1768444231461,-2430.1117,0.00015819,2]
[401990562,1768444231471,-1000.0,0.00015935,2]
[401990563,1768444231480,-1000.0,0.00015935,2]
[401990564,1768444231490,-1000.0,0.00015935,2]
[401990565,1768444231499,-1000.0,0.00015935,2]
[401990566,1768444231508,-1682.54,0.00015986,2]
[401990567,1768444231518,-571.55631892,0.00015999,2]
[401990568,1768444231528,-121452.28047876,0.00016,2]
[401990569,1768444231537,-16958.85717178,0.00016,4]
[401990570,1768444231549,-1238.93284746,0.00016,4]
[401990571,1768444231567,-5595.76522264,0.00016,4]
[401990572,1768444231578,-26550.36689097,0.00016,4]
[401990573,1768444231589,-7944.86444286,0.00016,4]
[401990574,1768444231598,-782.38,0.0001612,2]